bitfinex/quotes_ETHUSD_20250107
["timestamp","ask_amount","ask_price","bid_price","bid_amount"]
[1736292579402,2.85896224,3386.8,3386.7,1.53401413]
[1736292579899,5.89207179,3386.8,3386.7,1.53401413]
[1736292580200,5.89207179,3386.8,3386.4,0.0075]
[1736292580412,6.60252249,3386.8,3386.4,0.0075]
[1736292581203,3.64989249,3386.8,3386.4,0.0075]
[1736292581412,0.7917,3386.7,3386.3,1.53401413]
[1736292581577,2.85896224,3386.5,3386.3,1.53401413]
[1736292582075,0.07999181,3386.4,3386.3,1.53401413]
[1736292584237,0.07999181,3386.4,3386.3,1.02298435]
[1736292586728,0.07999181,3386.4,3386.2,2.55699848]
[1736292588024,0.07999181,3386.4,3386.2,1.02298435]
[1736292588820,2.85896224,3386.5,3386.3,1.02298435]
[1736292589382,0.8004,3386.4,3386.3,1.02298435]
[1736292589982,0.8004,3386.4,3386.2,1.02298435]
[1736292591230,0.8004,3386.4,3386.2,0.0075]
[1736292591743,0.8004,3386.4,3386.1,2.55699848]
[1736292591940,2.85896224,3386.2,3386.1,2.55699848]
[1736292592742,2.85896224,3386.2,3386.1,1.53401413]
[1736292593558,2.93836175,3386.2,3386.1,1.53401413]
[1736292594241,2.93836175,3386.2,3385.9,2.77107356]
[1736292594448,2.93836175,3386.2,3386.0,0.0075]
[1736292595457,2.93836175,3386.2,3386.1,1.02308406]
[1736292598553,2.93836175,3386.2,3386.1,1.03058406]
[1736292598708,0.07939951,3386.2,3386.1,1.03058406]
[1736292599065,2.85896224,3386.5,3386.2,0.0075]
[1736292600364,3.7744,3386.7,3386.2,0.0075]
[1736292601050,2.85896224,3386.5,3386.2,0.0075]
[1736292601256,2.85896224,3386.5,3386.3,1.02313716]
[1736292602357,2.85896224,3386.5,3386.1,2.55715129]
[1736292602854,2.85896224,3386.2,3386.1,2.55715129]
[1736292603037,3.22699846,3386.2,3386.1,2.55715129]
[1736292603359,6.18015846,3386.2,3386.1,2.55715129]
[1736292603655,6.18015846,3386.2,3386.1,1.53401413]
[1736292604416,3.32119622,3386.2,3386.1,1.53401413]
[1736292605061,3.32119622,3386.2,3385.9,1.02320896]
[1736292605275,0.7702,3386.0,3385.9,1.02320896]
[1736292605463,3.72353,3386.0,3385.9,1.02320896]
[1736292606344,2.9535,3385.9,3385.6,1.02320896]
[1736292606963,2.85896224,3385.7,3385.6,1.02320896]
[1736292607331,2.85896224,3386.0,3385.6,1.03070896]
[1736292607639,2.85896224,3386.0,3385.6,0.7989]
[1736292607841,2.85541075,3386.0,3385.6,0.7989]
[1736292609045,2.85541075,3386.0,3385.5,1.53401413]
[1736292609248,2.85896224,3385.7,3385.5,1.53401413]
[1736292610146,2.85896224,3385.7,3385.4,1.02239976]
[1736292611077,2.85896224,3385.7,3385.3,1.02239976]
[1736292612024,2.85896224,3385.7,3385.2,1.02239976]
[1736292613642,2.85896224,3385.7,3385.2,0.0075]
[1736292614576,2.85896224,3385.4,3385.2,0.0075]
[1736292614732,2.85896224,3385.4,3385.0,2.77107356]
[1736292614930,2.85896224,3385.1,3385.0,2.77107356]
[1736292616229,2.85896224,3385.4,3385.0,2.77107356]
[1736292616434,0.7852,3385.5,3384.9,0.0075]
[1736292616759,2.85896224,3385.7,3385.1,0.0075]
[1736292617578,0.07756077,3385.6,3385.1,0.0075]
[1736292618001,0.07756077,3385.6,3385.5,2.96127]
[1736292618297,2.85896224,3386.2,3385.6,0.0075]
[1736292618793,0.07735156,3386.1,3385.6,0.0075]
[1736292619986,2.85896224,3385.9,3385.6,0.0075]
[1736292620190,0.8105,3385.8,3385.3,1.23705943]
[1736292620401,2.85896224,3385.6,3385.3,1.23705943]
[1736292620695,0.0775259,3385.5,3385.3,1.23705943]
[1736292620878,0.8105,3385.4,3385.3,1.23705943]
[1736292621083,6.76436,3385.4,3385.3,1.23705943]
[1736292621284,8.39957241,3385.4,3385.3,1.23705943]
[1736292621766,8.39957241,3385.4,3384.7,0.0075]
[1736292621964,2.85896224,3385.0,3384.7,0.0075]
[1736292622362,0.07751719,3384.9,3384.6,1.23705943]
[1736292623178,0.07751719,3384.9,3384.6,0.0075]
[1736292624266,0.07751719,3384.9,3384.5,0.0075]
[1736292625296,0.07751719,3384.9,3384.4,0.0075]
[1736292625647,2.85896224,3384.7,3384.3,2.77033265]
[1736292625906,2.85896224,3384.4,3384.3,2.77033265]
[1736292626261,2.93570352,3384.4,3384.3,2.77033265]
[1736292626504,6.65163352,3384.4,3384.3,2.77033265]
[1736292626652,7.31679687,3384.4,3384.3,2.77033265]
[1736292627070,10.31679687,3384.4,3384.3,2.77033265]
[1736292627761,7.36206687,3384.4,3383.6,1.53327322]
[1736292628103,2.85896224,3383.9,3383.6,1.53327322]
[1736292628311,2.85896224,3384.2,3383.7,0.0075]
[1736292628691,0.07674128,3384.1,3383.7,0.0075]
[1736292631599,0.07674128,3384.1,3383.8,0.0075]
[1736292633573,0.07674128,3384.1,3383.9,0.0075]
[1736292633907,3.0,3384.4,3383.9,0.0075]
[1736292634061,3.0,3384.4,3384.0,0.8244]
[1736292634276,2.85896224,3384.5,3384.0,0.8244]
[1736292636838,2.85896224,3384.5,3383.9,0.0075]
[1736292636993,3.52804846,3384.5,3383.9,0.0075]
[1736292637574,6.48268846,3384.5,3383.9,0.0075]
[1736292638778,3.64306224,3384.2,3383.7,0.0075]
[1736292639595,2.85896224,3384.2,3383.7,0.0075]
[1736292642410,0.7841,3384.4,3383.7,0.0075]
[1736292642922,0.7841,3384.4,3383.8,0.0075]
[1736292643292,2.85896224,3384.5,3384.0,0.0075]
[1736292645043,0.07488342,3384.4,3384.0,0.0075]
[1736292648167,0.40631588,3384.4,3384.0,0.0075]
[1736292650346,0.40631588,3384.4,3383.5,2.95548]
[1736292650347,2.85896224,3384.2,3383.5,2.95548]
[1736292650506,2.85896224,3383.8,3383.4,0.791]
[1736292650948,0.0747002,3383.7,3383.4,0.791]
[1736292651253,3.67296224,3383.8,3383.5,0.0075]
[1736292651451,0.07468275,3383.7,3383.5,0.0075]
[1736292651609,3.67296224,3383.8,3383.3,0.0075]
[1736292651804,3.33143246,3384.4,3383.3,0.0075]
[1736292651805,0.07468275,3383.7,3383.3,0.0075]
[1736292652029,2.85896224,3384.4,3383.7,0.0075]
[1736292652228,0.07449077,3384.3,3384.0,0.8019]
[1736292652426,3.07449077,3384.3,3384.0,0.8019]
[1736292653234,0.07449077,3384.3,3384.0,0.8019]
[1736292653434,5.85896224,3384.5,3384.0,0.8019]
[1736292653660,0.07467402,3384.4,3384.0,0.8019]
[1736292660026,0.07467402,3384.4,3384.3,0.0075]
[1736292660312,2.85896224,3385.1,3384.3,3.76062]
[1736292660465,0.07477,3384.4,3384.3,3.76062]
[1736292660668,2.85896224,3384.5,3384.3,0.8058]
[1736292660903,0.07477,3384.4,3383.9,0.7983]
[1736292661302,0.07477,3384.4,3384.3,0.0075]
[1736292661502,0.07477,3384.4,3384.2,1.23705943]
[1736292661803,0.44826322,3384.4,3384.2,1.23705943]
[1736292662007,3.44826322,3384.4,3384.2,1.23705943]
[1736292662503,3.44826322,3384.4,3383.9,0.0075]
[1736292662682,2.85896224,3384.1,3383.9,0.0075]
[1736292662889,0.0753807,3384.0,3383.8,1.23705943]
[1736292663069,2.95517,3383.9,3383.8,1.23705943]
[1736292663274,3.03035004,3383.9,3383.8,1.23705943]
[1736292663874,3.03035004,3383.9,3383.5,1.53331118]
[1736292664069,2.85896224,3383.7,3383.5,1.53331118]
[1736292664275,0.07485719,3383.6,3383.5,1.54081118]
[1736292664982,0.07485719,3383.6,3383.1,2.47240255]
[1736292664983,0.07485719,3383.6,3383.1,2.77037061]
[1736292666270,0.07485719,3383.6,3383.2,1.03102444]
[1736292667616,0.07485719,3383.6,3383.3,1.02352444]
[1736292668912,0.07485719,3383.6,3383.3,1.53331118]
[1736292669999,0.07485719,3383.6,3383.4,1.02404825]
[1736292671192,0.07485719,3383.6,3383.3,1.53331118]
[1736292671936,2.85896224,3383.4,3383.3,1.53331118]
[1736292672289,2.93349651,3383.4,3383.3,1.53331118]
[1736292672702,2.93349651,3383.4,3383.3,1.23705943]
[1736292673237,5.88909651,3383.4,3383.3,1.23705943]
[1736292673533,8.88909651,3383.4,3383.3,1.23705943]
[1736292673751,9.86026616,3383.4,3383.3,1.23705943]
[1736292674091,2.95586,3383.1,3383.0,1.02426977]
[1736292674329,9.66419661,3383.1,3383.0,1.02426977]
[1736292675840,2.95633,3382.6,3382.1,3.79773386]
[1736292676153,6.70809218,3382.5,3382.1,3.79773386]
[1736292677343,6.70809218,3382.5,3381.7,0.0075]
[1736292678535,5.93229218,3382.5,3381.9,2.95691]
[1736292678710,5.93229218,3382.5,3381.6,2.77346409]
[1736292678711,5.93229218,3382.5,3381.6,0.0075]
[1736292679046,5.93229218,3382.5,3381.8,2.9645]
[1736292680027,5.93229218,3382.5,3381.5,2.01945943]
[1736292680028,0.07332994,3382.5,3382.0,0.0075]
[1736292680348,3.65766224,3382.8,3382.3,0.0075]
[1736292680545,0.07267502,3382.4,3382.3,0.0075]
[1736292680714,3.0,3382.7,3382.3,0.0075]
[1736292680898,0.07267502,3382.4,3382.3,0.0075]
[1736292681245,3.0,3382.7,3382.3,0.0075]
[1736292681400,0.07267502,3382.4,3382.3,0.0075]
[1736292681603,3.0,3382.7,3382.3,0.0075]
[1736292681804,0.07267502,3382.4,3382.3,0.0075]
[1736292682031,3.0,3382.7,3382.3,0.0075]
[1736292682571,0.07267502,3382.6,3382.3,0.0075]
[1736292683063,0.07267502,3382.6,3382.5,0.5575]
[1736292683210,0.8116,3383.6,3382.5,3.51389]
[1736292683409,2.85896224,3383.7,3382.5,3.51389]
[1736292683410,2.85896224,3383.7,3383.1,2.95585]
[1736292683727,2.85896224,3383.7,3382.7,0.7517]
[1736292683728,3.0,3383.6,3383.0,0.0075]
[1736292683934,0.07267502,3383.6,3383.5,0.0075]
[1736292684343,4.08354731,3384.0,3383.5,0.0075]
[1736292684544,0.07224725,3383.6,3383.5,0.0075]
[1736292684746,4.08354731,3384.0,3383.5,0.0075]
[1736292684931,0.07224725,3383.6,3383.5,0.0075]
[1736292685153,3.16754,3384.7,3383.7,2.95528]
[1736292685154,2.85896224,3384.3,3383.7,2.95528]
[1736292685461,2.85896224,3384.3,3383.8,0.0075]
[1736292685825,2.85896224,3384.3,3383.5,0.58704995]
[1736292686049,0.7832,3384.5,3383.5,0.58704995]
[1736292686050,3.65996224,3384.9,3384.1,0.7711]
[1736292686252,2.85896224,3384.9,3384.2,0.0075]
[1736292686574,4.08354731,3385.5,3384.7,0.0075]
[1736292686778,4.08354731,3385.5,3384.7,2.96195]
[1736292687129,1.22458507,3385.5,3385.0,0.7711]
[1736292687384,1.22458507,3385.5,3385.2,2.9615]
[1736292687552,1.22458507,3385.5,3385.4,0.0075]
[1736292687756,2.85896224,3385.9,3385.4,0.0075]
[1736292688082,3.4530976,3385.9,3385.4,0.0075]
[1736292689038,2.85896224,3386.2,3385.4,0.03703615]
[1736292689232,2.85896224,3386.2,3385.4,2.99084615]
[1736292690004,2.85896224,3386.2,3385.6,0.0075]
[1736292690185,0.07461204,3386.1,3385.6,2.99069322]
[1736292690385,3.07461204,3386.1,3385.6,0.03703322]
[1736292690767,3.07461204,3386.1,3385.5,0.0075]
[1736292691303,0.07461204,3386.1,3385.5,0.0370331]
[1736292692059,0.07461204,3386.1,3385.9,0.0075]
[1736292692407,5.81108224,3387.4,3385.9,0.57952913]
[1736292692551,0.58110822,3387.3,3386.3,0.0075]
[1736292692751,2.85896224,3387.1,3386.3,0.03702758]
[1736292693183,2.85896224,3387.1,3386.5,0.0075]
[1736292693445,0.07491716,3387.0,3386.7,0.0075]
[1736292693714,3.61726224,3387.4,3386.7,0.0075]
[1736292693911,0.07491716,3387.3,3386.7,0.0075]
[1736292694253,0.07491716,3387.3,3386.8,0.0075]
[1736292694487,0.07491716,3387.3,3386.4,3.78006]
[1736292694909,0.07491716,3387.3,3386.5,0.0075]
[1736292695257,0.07491716,3387.3,3386.5,0.03702297]
[1736292695457,0.07491716,3387.3,3386.5,2.98986297]
[1736292696583,0.07491716,3387.3,3386.5,0.03702297]
[1736292696774,0.07491716,3387.3,3386.7,0.0075]
[1736292696979,0.07491716,3387.3,3386.7,0.03702297]
[1736292697591,0.07491716,3387.3,3386.8,2.95262]
[1736292697800,0.07491716,3387.3,3386.9,0.03702054]
[1736292697981,2.85896224,3387.7,3386.9,0.03702054]
[1736292698178,0.07621566,3387.2,3386.9,0.03702054]
[1736292698368,2.85896224,3387.7,3386.9,0.0075]
[1736292698566,0.07621566,3387.1,3386.9,0.0075]
[1736292698769,2.85896224,3387.4,3386.9,0.0075]
[1736292699164,0.07621566,3387.3,3386.9,0.0370229]
[1736292699863,2.85896224,3387.7,3387.1,0.0075]
[1736292700175,2.95119,3388.5,3387.5,0.7981]
[1736292700176,0.07621566,3387.6,3387.5,0.7981]
[1736292700387,0.07621566,3387.6,3387.5,0.82761685]
[1736292700558,2.85896224,3388.0,3387.6,0.0075]
[1736292701006,0.07621566,3387.9,3387.6,0.0075]
[1736292701503,0.07621566,3387.9,3387.2,0.0075]
[1736292702182,0.07621566,3387.9,3387.3,0.55]
[1736292702363,0.07621566,3387.9,3387.7,0.0075]
[1736292702710,0.8056,3388.8,3388.0,0.0075]
[1736292702869,0.07621566,3388.7,3388.0,0.03701104]
[1736292703069,2.85896224,3388.6,3388.0,0.0075]
[1736292703377,5.81031224,3388.3,3387.4,0.7865]
[1736292703573,6.39134346,3388.3,3387.5,0.0075]
[1736292703764,2.85896224,3387.7,3387.5,0.0075]
[1736292704203,0.07864601,3387.6,3387.2,0.0075]
[1736292705014,0.07864601,3387.6,3387.5,2.95952]
[1736292705209,0.07864601,3387.6,3387.5,0.0075]
[1736292705382,2.85896224,3388.0,3387.6,0.0075]
[1736292706808,2.85896224,3388.0,3387.5,0.0075]
[1736292707015,2.85896224,3388.0,3387.5,0.03701718]
[1736292707308,2.85896224,3388.0,3387.5,0.0075]
[1736292707795,5.81056224,3388.0,3387.2,0.0075]
[1736292708000,2.85896224,3387.7,3387.2,0.0075]
[1736292708166,2.85896224,3388.0,3387.2,0.03701838]
[1736292708518,2.85896224,3388.0,3387.4,0.0075]
[1736292708744,2.85896224,3388.0,3387.4,0.03701712]
[1736292709345,2.85896224,3388.3,3387.7,0.8271]
[1736292709560,2.85896224,3388.3,3387.8,0.0075]
[1736292711952,2.85896224,3388.0,3387.3,0.7663]
[1736292712124,2.85896224,3388.0,3387.4,0.02951687]
[1736292712453,2.85896224,3388.3,3387.7,2.95178]
[1736292712657,3.0,3388.5,3387.8,0.83111678]
[1736292712819,3.0,3388.5,3387.8,3.75336]
[1736292713360,2.85896224,3388.3,3387.5,0.7941]
[1736292713654,5.81029224,3388.3,3387.5,0.7941]
[1736292713836,5.81029224,3388.3,3387.6,0.0075]
[1736292715036,5.81029224,3388.3,3387.6,0.03701591]
[1736292715210,5.81029224,3388.3,3387.6,0.0075]
[1736292715755,5.81029224,3388.3,3387.6,0.03701591]
[1736292715952,5.81029224,3388.3,3387.6,0.0075]
[1736292716808,2.85896224,3388.0,3387.6,0.0075]
[1736292717454,2.85896224,3388.0,3387.6,0.03701645]
[1736292718221,2.85896224,3388.3,3387.6,0.03701645]
[1736292718858,2.85896224,3388.3,3387.6,0.0075]
[1736292719662,5.81030224,3388.3,3387.6,0.03701644]
[1736292719958,2.85896224,3388.3,3387.6,0.03701644]
[1736292720164,0.07946435,3388.2,3387.6,0.5575]
[1736292720344,0.07946435,3388.2,3387.9,0.0075]
[1736292720544,2.85896224,3388.7,3387.9,0.03701188]
[1736292720727,0.07947306,3388.6,3387.9,0.03701188]
[1736292721252,3.0,3388.9,3387.9,0.03701188]
[1736292721455,0.07947306,3388.5,3388.2,0.0075]
[1736292721659,3.0,3388.9,3388.3,0.0075]
[1736292721870,2.9384353,3388.4,3388.3,0.0075]
[1736292722028,3.64646224,3388.4,3387.8,0.7559]
[1736292722212,2.85896224,3387.9,3387.1,0.7663]
[1736292722557,2.85896224,3387.6,3387.1,0.7663]
[1736292722727,2.85896224,3387.3,3386.6,0.7663]
[1736292722927,2.85896224,3387.3,3386.7,2.95268]
[1736292723268,0.07947306,3387.2,3386.8,0.02952182]
[1736292723555,2.85896224,3387.3,3386.9,0.0075]
[1736292723709,0.07947306,3387.1,3386.9,2.96004]
[1736292723905,3.64646224,3387.6,3386.9,2.96004]
[1736292724147,0.07947306,3387.5,3386.9,2.96004]
[1736292724754,0.07947306,3387.5,3387.1,2.95985]
[1736292724919,0.07947306,3387.5,3387.3,0.0075]
[1736292725252,3.0,3387.8,3387.3,0.0075]
[1736292725253,2.85896224,3387.6,3387.3,0.0075]
[1736292725422,0.07947306,3387.4,3387.3,0.0075]
[1736292725626,2.85896224,3387.6,3387.3,0.0075]
[1736292725824,0.07895072,3387.4,3387.3,0.03702012]
[1736292726039,2.85896224,3387.6,3387.3,0.03702012]
[1736292726237,0.07895072,3387.4,3387.3,0.03702012]
[1736292726411,2.85896224,3387.6,3387.3,0.03702012]
[1736292726609,0.07895072,3387.4,3386.9,0.7971]
[1736292726808,2.85896224,3387.0,3386.6,3.74237]
[1736292727041,2.93757344,3387.3,3386.7,0.0075]
[1736292727259,0.07859379,3386.9,3386.7,0.0075]
[1736292727413,2.85896224,3387.3,3386.7,0.0075]
[1736292727617,2.85896224,3387.3,3386.7,2.96022]
[1736292727618,0.07850672,3386.8,3386.7,2.96022]
[1736292728114,0.8268,3387.8,3387.1,0.0075]
[1736292728308,0.07833256,3387.7,3387.1,0.0075]
[1736292728712,0.07833256,3387.7,3387.1,2.98935918]
[1736292729356,0.07833256,3387.7,3387.1,0.03701918]
[1736292729560,0.07833256,3387.7,3387.3,0.0075]
[1736292729767,0.07833256,3387.7,3387.3,0.03701889]
[1736292729953,5.85896224,3387.9,3387.3,0.03701889]
[1736292730265,0.07833256,3387.8,3387.3,0.03701889]
[1736292730471,0.07833256,3387.8,3387.2,0.0075]
[1736292730849,0.07833256,3387.8,3387.1,0.0075]
[1736292731055,0.8268,3387.5,3387.1,0.0075]
[1736292731365,2.85896224,3387.3,3387.1,0.0075]
[1736292731763,2.85896224,3387.3,3387.0,0.0075]
[1736292731967,0.07870697,3387.2,3387.0,0.0075]
[1736292732322,2.85896224,3387.3,3386.9,0.0075]
[1736292732524,0.07870697,3387.2,3386.9,0.0075]
[1736292732726,2.85896224,3387.3,3386.7,1.22016022]
[1736292733056,2.85896224,3387.0,3386.8,0.0075]
[1736292733242,0.07870697,3387.2,3386.8,0.0075]
[1736292733567,0.07870697,3387.1,3386.8,0.0075]
[1736292734182,0.07870697,3387.0,3386.9,0.7824]
[1736292734334,0.07870697,3387.0,3386.9,3.73495]
[1736292734515,2.85896224,3387.6,3387.0,0.0075]
[1736292734715,0.07870697,3387.5,3387.0,0.0075]
[1736292735115,0.07870697,3387.5,3387.0,0.0370211]
[1736292735330,0.07870697,3387.5,3387.0,2.9894711]
[1736292735536,0.07870697,3387.5,3387.0,0.0075]
[1736292736375,0.07870697,3387.5,3387.2,0.0075]
[1736292736576,2.85896224,3387.3,3387.2,0.0075]
[1736292736870,2.85896224,3387.3,3387.1,2.54754033]
[1736292737056,2.93715547,3387.3,3387.1,2.54754033]
[1736292737457,2.93715547,3387.3,3387.2,2.54754033]
[1736292738742,2.93715547,3387.3,3386.9,1.23513498]
[1736292738743,4.34648402,3387.3,3386.9,1.23513498]
[1736292738937,4.34648402,3387.3,3386.9,1.24263498]
[1736292738938,2.85896224,3387.0,3386.9,1.24263498]
[1736292739276,2.93700743,3387.0,3386.9,1.24263498]
[1736292740270,2.93700743,3387.0,3386.9,2.56456713]
[1736292740457,0.07804519,3387.0,3386.9,3.37296713]
[1736292740651,0.07804519,3387.0,3386.9,3.40248945]
[1736292740834,2.85896224,3387.3,3387.0,0.0075]
[1736292742324,2.85896224,3387.3,3387.2,0.0075]
[1736292743143,2.85896224,3387.6,3387.2,0.0075]
[1736292743377,2.85896224,3387.9,3387.2,0.0075]
[1736292743577,2.85896224,3387.9,3387.6,0.0075]
[1736292744463,4.07770711,3388.2,3387.6,0.03701833]
[1736292744779,2.85896224,3388.2,3387.6,0.03701833]
[1736292744977,1.21874487,3388.7,3388.1,0.0075]
[1736292745182,1.21874487,3388.7,3388.1,0.03700943]
[1736292745682,1.21874487,3388.7,3388.1,2.98846943]
[1736292746030,3.68486224,3389.0,3388.3,0.0075]
[1736292746237,3.68486224,3389.0,3388.3,0.03700973]
[1736292746238,2.85896224,3388.7,3388.3,0.03700973]
[1736292748133,2.85896224,3389.0,3388.3,0.03700973]
[1736292748480,2.85896224,3389.3,3388.9,0.0075]
[1736292749185,5.80942224,3389.3,3388.5,0.7891]
[1736292749612,5.80942224,3389.3,3388.6,0.0075]
[1736292749757,5.80942224,3389.3,3388.6,1.24263498]
[1736292750169,0.08028245,3389.2,3388.6,1.24263498]
[1736292750977,0.08028245,3389.2,3388.8,0.0075]
[1736292751270,0.08028245,3389.2,3389.0,0.0075]
[1736292751437,2.85896224,3389.6,3389.0,0.03700235]
[1736292751773,2.85896224,3389.6,3389.0,0.03700222]
[1736292751937,0.08049127,3389.5,3389.0,0.03700222]
[1736292752284,0.08049127,3389.5,3389.0,0.0075]
[1736292752435,0.08049127,3389.5,3389.0,0.03700227]
[1736292752972,0.08049127,3389.5,3389.0,0.0075]
[1736292753339,0.08049127,3389.5,3389.0,0.03700227]
[1736292754080,0.08049127,3389.5,3389.0,0.0075]
[1736292754898,2.85896224,3389.3,3388.9,0.5575]
[1736292755274,0.08076964,3389.2,3388.9,0.0075]
[1736292755601,2.85896224,3389.3,3388.8,0.0075]
[1736292755804,0.08076964,3389.1,3388.8,0.0075]
[1736292755987,2.85896224,3389.3,3388.8,0.0075]
[1736292756305,0.08076964,3389.0,3388.8,0.0075]
[1736292756490,5.85896224,3389.6,3388.8,0.0075]
[1736292756681,0.08076964,3388.9,3388.8,4.31379231]
[1736292757011,2.85896224,3389.6,3389.1,0.5575]
[1736292757162,3.0,3389.8,3389.1,0.5575]
[1736292757569,3.0,3389.8,3389.3,0.0075]
[1736292757968,3.0,3389.8,3389.3,0.03700027]
[1736292758169,3.0,3389.8,3389.1,0.55]
[1736292758170,3.0,3389.8,3389.2,0.0075]
[1736292758803,3.0,3389.8,3389.2,0.03700027]
[1736292759004,3.0,3389.8,3389.2,0.0075]
[1736292759186,3.0,3389.8,3389.2,0.03700027]
[1736292759515,2.85896224,3389.9,3389.2,2.98753027]
[1736292761271,2.85896224,3389.9,3389.4,0.0075]
[1736292761469,3.59175451,3390.8,3389.4,0.0075]
[1736292761470,2.85896224,3390.4,3389.4,0.02949923]
[1736292761690,2.85896224,3390.4,3389.7,0.0075]
[1736292761890,2.85896224,3390.4,3389.7,0.03699676]
[1736292762422,2.85896224,3389.8,3389.5,0.0075]
[1736292762791,2.85896224,3390.1,3389.5,0.0075]
[1736292763312,2.85896224,3390.1,3389.4,0.0294998]
[1736292763313,2.85896224,3390.1,3389.4,0.0075]
[1736292765324,0.08193534,3390.0,3389.4,0.0075]
[1736292770182,2.85896224,3389.8,3389.4,0.0075]
[1736292770383,2.85896224,3389.5,3388.9,2.9508]
[1736292770582,2.85896224,3389.5,3389.0,0.02950261]
[1736292770977,0.08222233,3389.4,3389.0,0.02950261]
[1736292771535,0.08222233,3389.4,3389.1,0.0075]
[1736292771886,0.08222233,3389.4,3389.1,0.7764]
[1736292774110,0.08222233,3389.4,3389.3,0.0075]
[1736292774350,2.85896224,3389.8,3389.3,0.0075]
[1736292774518,0.08222233,3389.4,3389.3,0.0075]
[1736292774723,2.85896224,3389.8,3389.3,0.0075]
[1736292774947,0.08222233,3389.4,3389.3,0.0075]
[1736292775337,2.85896224,3389.8,3389.3,0.0075]
[1736292775649,0.08222233,3389.7,3389.2,0.0075]
[1736292775834,2.85896224,3389.5,3389.4,35.0]
[1736292776041,4.2207827,3389.5,3389.4,35.0]
[1736292776210,4.2207827,3389.5,3388.8,0.7763]
[1736292776211,7.1710627,3389.5,3388.8,0.7763]
[1736292776419,2.85896224,3389.2,3388.9,0.0075]
[1736292776639,2.85896224,3389.2,3389.0,35.0]
[1736292778167,2.85896224,3389.2,3389.1,0.0075]
[1736292779529,2.85896224,3389.2,3388.3,2.95131]
[1736292779530,0.7667,3389.1,3388.3,2.95131]
[1736292779731,0.7667,3389.1,3388.1,2.95147]
[1736292779732,2.85896224,3388.6,3388.1,2.95147]
[1736292779946,2.85896224,3388.6,3388.4,35.0]
[1736292780350,2.85896224,3388.6,3388.5,0.0075]
[1736292780733,2.85896224,3388.6,3388.4,35.0]
[1736292781528,2.85896224,3388.9,3388.5,0.0075]
[1736292781773,0.08184834,3388.8,3388.5,0.0075]
[1736292784053,0.08184834,3388.8,3388.5,0.8245]
[1736292784254,2.85896224,3388.9,3388.5,0.8245]
[1736292784453,0.08184834,3388.7,3388.5,0.8245]
[1736292784649,2.85896224,3388.9,3388.5,0.8245]
[1736292785183,0.08111767,3388.8,3388.7,0.0075]
[1736292785775,0.08111767,3388.8,3388.7,35.0075]
[1736292786683,0.08111767,3388.8,3388.7,35.0]
[1736292786864,2.85896224,3388.9,3388.0,1.23513498]
[1736292787045,2.85896224,3388.2,3388.0,1.23513498]
[1736292787448,2.93976674,3388.1,3388.0,1.23513498]
[1736292787642,2.93976674,3388.1,3387.9,1.23513498]
[1736292787844,2.93976674,3388.1,3388.0,35.0]
[1736292788169,2.85896224,3388.1,3388.0,35.0]
[1736292788541,2.9394535,3388.1,3388.0,35.0]
[1736292789989,2.9394535,3388.1,3388.0,35.0075]
[1736292789990,0.08049126,3388.1,3388.0,35.0075]
[1736292790186,2.85896224,3388.4,3388.1,0.0075]
[1736292790397,2.85896224,3389.1,3388.6,0.0075]
[1736292790745,2.85896224,3388.8,3388.6,0.0075]
[1736292790990,2.85896224,3388.8,3388.7,35.0075]
[1736292791392,2.93922722,3388.8,3388.7,35.0075]
[1736292794347,2.85896224,3388.8,3388.7,35.0075]
[1736292794590,2.93972324,3388.8,3388.7,35.0075]
[1736292795299,2.93972324,3388.8,3388.7,35.0]
[1736292795482,0.7735,3388.7,3388.4,1.23513498]
[1736292795799,2.93972324,3388.8,3388.4,0.0075]
[1736292795964,2.85896224,3388.8,3388.5,35.0]
[1736292796567,2.85896224,3389.1,3388.6,0.7781]
[1736292797394,2.85896224,3389.1,3388.8,0.0075]
[1736292797395,0.08084803,3389.0,3388.8,0.0075]
[1736292797781,2.85896224,3389.1,3388.8,0.0075]
[1736292797978,2.85896224,3389.1,3388.7,0.0075]
[1736292798179,0.7735,3389.3,3388.9,35.0]
[1736292798380,2.85896224,3389.0,3388.9,35.0]
[1736292798910,2.93981027,3389.0,3388.9,35.0]
[1736292799113,0.08084803,3389.0,3388.9,35.0075]
[1736292799326,0.08084803,3389.0,3388.9,35.8021]
[1736292799518,2.85896224,3389.3,3389.0,0.0075]
[1736292800045,3.72774,3389.6,3389.0,0.0075]
[1736292800046,2.85896224,3389.6,3389.0,0.0075]
[1736292800329,3.0,3389.5,3389.0,0.0075]
[1736292802934,3.0,3389.5,3389.2,0.0075]
[1736292803290,2.85896224,3389.6,3389.2,0.0075]
[1736292803494,2.85896224,3389.6,3389.1,0.0075]
[1736292803811,0.815,3389.9,3389.2,35.0]
[1736292803812,2.85896224,3389.3,3389.2,35.0]
[1736292804038,6.57062224,3389.3,3388.7,1.23513498]
[1736292804195,2.85896224,3389.0,3388.7,1.23513498]
[1736292804530,2.85896224,3389.0,3388.9,0.0075]
[1736292804734,2.85896224,3389.0,3388.6,1.98803498]
[1736292804934,2.85896224,3388.7,3388.6,1.23513498]
[1736292805142,2.85896224,3388.7,3388.6,36.24263498]
[1736292805539,2.85896224,3389.0,3388.7,0.0075]
[1736292805832,0.08113511,3388.9,3388.7,0.0075]
[1736292807039,2.85896224,3389.0,3388.7,0.0075]
[1736292808945,2.85896224,3389.0,3388.4,0.0075]
[1736292809235,0.08113511,3388.9,3388.4,0.0075]
[1736292809451,0.08113511,3388.9,3388.8,35.0075]
[1736292809816,2.85896224,3389.0,3388.8,35.0075]
[1736292810691,0.0807697,3388.9,3388.8,35.0075]
[1736292811700,2.85896224,3389.0,3388.8,35.0075]
[1736292816177,5.80972224,3389.0,3388.8,35.0075]
[1736292816475,2.95105,3388.7,3388.5,1.23513498]
[1736292816654,5.81003224,3388.6,3388.5,1.23513498]
[1736292816855,5.89088024,3388.6,3388.5,36.23513498]
[1736292817084,5.81003224,3388.6,3388.5,1.23513498]
[1736292817571,5.89074103,3388.6,3388.4,37.55567993]
[1736292817920,5.81003224,3388.6,3388.4,37.55567993]
[1736292818826,2.95115,3388.5,3388.4,35.0]
[1736292819058,3.03185879,3388.5,3388.0,1.23513498]
[1736292819462,2.85896224,3388.3,3388.1,0.0075]
[1736292819667,2.85896224,3388.3,3388.1,35.0075]
[1736292820023,2.85896224,3388.3,3388.1,37.56381582]
[1736292821377,2.85896224,3388.3,3388.2,2.56381582]